Workbook

Sheet Input
B3: 項目 | C3: 数値
B4: 初回CFADS | C4: 300
B5: CFADS劣化率 | C5: 0.01
B6: DSCR | C6: 1.4
B7: 固定金利 | C7: 0.045
B8: 借入タイミング | C8: 2
B9: 完済タイミング | C9: 29
B10: tol | C10: =10^-6 -> 1e-06

Sheet Calc.&Output
G2: Counter | I2: =+H2+1 -> 1 | J2: =+I2+1 -> 2 | K2: 3 | L2: 4 | M2: 5 | N2: 6 | O2: 7 | P2: 8 | Q2: 9 | R2: 10 | S2: 11 | T2: 12 | U2: 13 | V2: 14 | W2: 15 | X2: 16 | Y2: 17 | Z2: 18 | AA2: 19 | AB2: 20 | AC2: 21 | AD2: 22 | AE2: 23 | AF2: 24 | AG2: 25 | AH2: 26 | AI2: 27 | AJ2: 28 | AK2: 29 | AL2: 30 | AM2: 31 | AN2: 32 | AO2: 33 | AP2: 34 | AQ2: 35 | AR2: 36 | AS2: 37 | AT2: 38 | AU2: 39 | AV2: 40
G3: 借入フラグ | I3: =(I2=Input!$C8)*1 -> 0 | J3: =(J2=Input!$C8)*1 -> 1 | K3: =(K2=Input!$C8)*1 -> 0 | L3: =(L2=Input!$C8)*1 -> 0 | M3: =(M2=Input!$C8)*1 -> 0 | N3: =(N2=Input!$C8)*1 -> 0 | O3: =(O2=Input!$C8)*1 -> 0 | P3: =(P2=Input!$C8)*1 -> 0 | Q3: =(Q2=Input!$C8)*1 -> 0 | R3: =(R2=Input!$C8)*1 -> 0 | S3: =(S2=Input!$C8)*1 -> 0 | T3: =(T2=Input!$C8)*1 -> 0 | U3: =(U2=Input!$C8)*1 -> 0 | V3: =(V2=Input!$C8)*1 -> 0 | W3: =(W2=Input!$C8)*1 -> 0 | X3: =(X2=Input!$C8)*1 -> 0 | Y3: =(Y2=Input!$C8)*1 -> 0 | Z3: =(Z2=Input!$C8)*1 -> 0 | AA3: =(AA2=Input!$C8)*1 -> 0 | AB3: =(AB2=Input!$C8)*1 -> 0 | AC3: =(AC2=Input!$C8)*1 -> 0 | AD3: =(AD2=Input!$C8)*1 -> 0 | AE3: =(AE2=Input!$C8)*1 -> 0 | AF3: =(AF2=Input!$C8)*1 -> 0 | AG3: =(AG2=Input!$C8)*1 -> 0 | AH3: =(AH2=Input!$C8)*1 -> 0 | AI3: =(AI2=Input!$C8)*1 -> 0 | AJ3: =(AJ2=Input!$C8)*1 -> 0 | AK3: =(AK2=Input!$C8)*1 -> 0 | AL3: =(AL2=Input!$C8)*1 -> 0 | AM3: =(AM2=Input!$C8)*1 -> 0 | AN3: =(AN2=Input!$C8)*1 -> 0 | AO3: =(AO2=Input!$C8)*1 -> 0 | AP3: =(AP2=Input!$C8)*1 -> 0 | AQ3: =(AQ2=Input!$C8)*1 -> 0 | AR3: =(AR2=Input!$C8)*1 -> 0 | AS3: =(AS2=Input!$C8)*1 -> 0 | AT3: =(AT2=Input!$C8)*1 -> 0 | AU3: =(AU2=Input!$C8)*1 -> 0 | AV3: =(AV2=Input!$C8)*1 -> 0
G4: 返済フラグ | I4: =(I2>=Input!$C8)*(I2<=Input!$C9) -> 0 | J4: =(J2>=Input!$C8)*(J2<=Input!$C9) -> 1 | K4: =(K2>=Input!$C8)*(K2<=Input!$C9) -> 1 | L4: =(L2>=Input!$C8)*(L2<=Input!$C9) -> 1 | M4: =(M2>=Input!$C8)*(M2<=Input!$C9) -> 1 | N4: =(N2>=Input!$C8)*(N2<=Input!$C9) -> 1 | O4: =(O2>=Input!$C8)*(O2<=Input!$C9) -> 1 | P4: =(P2>=Input!$C8)*(P2<=Input!$C9) -> 1 | Q4: =(Q2>=Input!$C8)*(Q2<=Input!$C9) -> 1 | R4: =(R2>=Input!$C8)*(R2<=Input!$C9) -> 1 | S4: =(S2>=Input!$C8)*(S2<=Input!$C9) -> 1 | T4: =(T2>=Input!$C8)*(T2<=Input!$C9) -> 1 | U4: =(U2>=Input!$C8)*(U2<=Input!$C9) -> 1 | V4: =(V2>=Input!$C8)*(V2<=Input!$C9) -> 1 | W4: =(W2>=Input!$C8)*(W2<=Input!$C9) -> 1 | X4: =(X2>=Input!$C8)*(X2<=Input!$C9) -> 1 | Y4: =(Y2>=Input!$C8)*(Y2<=Input!$C9) -> 1 | Z4: =(Z2>=Input!$C8)*(Z2<=Input!$C9) -> 1 | AA4: =(AA2>=Input!$C8)*(AA2<=Input!$C9) -> 1 | AB4: =(AB2>=Input!$C8)*(AB2<=Input!$C9) -> 1 | AC4: =(AC2>=Input!$C8)*(AC2<=Input!$C9) -> 1 | AD4: =(AD2>=Input!$C8)*(AD2<=Input!$C9) -> 1 | AE4: =(AE2>=Input!$C8)*(AE2<=Input!$C9) -> 1 | AF4: =(AF2>=Input!$C8)*(AF2<=Input!$C9) -> 1 | AG4: =(AG2>=Input!$C8)*(AG2<=Input!$C9) -> 1 | AH4: =(AH2>=Input!$C8)*(AH2<=Input!$C9) -> 1 | AI4: =(AI2>=Input!$C8)*(AI2<=Input!$C9) -> 1 | AJ4: =(AJ2>=Input!$C8)*(AJ2<=Input!$C9) -> 1 | AK4: =(AK2>=Input!$C8)*(AK2<=Input!$C9) -> 1 | AL4: =(AL2>=Input!$C8)*(AL2<=Input!$C9) -> 0 | AM4: =(AM2>=Input!$C8)*(AM2<=Input!$C9) -> 0 | AN4: =(AN2>=Input!$C8)*(AN2<=Input!$C9) -> 0 | AO4: =(AO2>=Input!$C8)*(AO2<=Input!$C9) -> 0 | AP4: =(AP2>=Input!$C8)*(AP2<=Input!$C9) -> 0 | AQ4: =(AQ2>=Input!$C8)*(AQ2<=Input!$C9) -> 0 | AR4: =(AR2>=Input!$C8)*(AR2<=Input!$C9) -> 0 | AS4: =(AS2>=Input!$C8)*(AS2<=Input!$C9) -> 0 | AT4: =(AT2>=Input!$C8)*(AT2<=Input!$C9) -> 0 | AU4: =(AU2>=Input!$C8)*(AU2<=Input!$C9) -> 0 | AV4: =(AV2>=Input!$C8)*(AV2<=Input!$C9) -> 0
B5: マクロで用いるセルの名前 | D5: 項目 | E5: 計算式
D9: CFADS | E9: 所与 | G9: =SUM(I9:AV9) -> 9660 | I9: =Input!$C$4*(1-Input!$C$5*(I2-1)) -> 300 | J9: =Input!$C$4*(1-Input!$C$5*(J2-1)) -> 297 | K9: =Input!$C$4*(1-Input!$C$5*(K2-1)) -> 294 | L9: =Input!$C$4*(1-Input!$C$5*(L2-1)) -> 291 | M9: =Input!$C$4*(1-Input!$C$5*(M2-1)) -> 288 | N9: =Input!$C$4*(1-Input!$C$5*(N2-1)) -> 285 | O9: =Input!$C$4*(1-Input!$C$5*(O2-1)) -> 282 | P9: =Input!$C$4*(1-Input!$C$5*(P2-1)) -> 279 | Q9: =Input!$C$4*(1-Input!$C$5*(Q2-1)) -> 276 | R9: =Input!$C$4*(1-Input!$C$5*(R2-1)) -> 273 | S9: =Input!$C$4*(1-Input!$C$5*(S2-1)) -> 270 | T9: =Input!$C$4*(1-Input!$C$5*(T2-1)) -> 267 | U9: =Input!$C$4*(1-Input!$C$5*(U2-1)) -> 264 | V9: =Input!$C$4*(1-Input!$C$5*(V2-1)) -> 261 | W9: =Input!$C$4*(1-Input!$C$5*(W2-1)) -> 258 | X9: =Input!$C$4*(1-Input!$C$5*(X2-1)) -> 255 | Y9: =Input!$C$4*(1-Input!$C$5*(Y2-1)) -> 252 | Z9: =Input!$C$4*(1-Input!$C$5*(Z2-1)) -> 249 | AA9: =Input!$C$4*(1-Input!$C$5*(AA2-1)) -> 246 | AB9: =Input!$C$4*(1-Input!$C$5*(AB2-1)) -> 243 | AC9: =Input!$C$4*(1-Input!$C$5*(AC2-1)) -> 240 | AD9: =Input!$C$4*(1-Input!$C$5*(AD2-1)) -> 237 | AE9: =Input!$C$4*(1-Input!$C$5*(AE2-1)) -> 234 | AF9: =Input!$C$4*(1-Input!$C$5*(AF2-1)) -> 231 | AG9: =Input!$C$4*(1-Input!$C$5*(AG2-1)) -> 228 | AH9: =Input!$C$4*(1-Input!$C$5*(AH2-1)) -> 225 | AI9: =Input!$C$4*(1-Input!$C$5*(AI2-1)) -> 222 | AJ9: =Input!$C$4*(1-Input!$C$5*(AJ2-1)) -> 219 | AK9: =Input!$C$4*(1-Input!$C$5*(AK2-1)) -> 216 | AL9: =Input!$C$4*(1-Input!$C$5*(AL2-1)) -> 213 | AM9: =Input!$C$4*(1-Input!$C$5*(AM2-1)) -> 210 | AN9: =Input!$C$4*(1-Input!$C$5*(AN2-1)) -> 207 | AO9: =Input!$C$4*(1-Input!$C$5*(AO2-1)) -> 204 | AP9: =Input!$C$4*(1-Input!$C$5*(AP2-1)) -> 201 | AQ9: =Input!$C$4*(1-Input!$C$5*(AQ2-1)) -> 198 | AR9: =Input!$C$4*(1-Input!$C$5*(AR2-1)) -> 195 | AS9: =Input!$C$4*(1-Input!$C$5*(AS2-1)) -> 192 | AT9: =Input!$C$4*(1-Input!$C$5*(AT2-1)) -> 189 | AU9: =Input!$C$4*(1-Input!$C$5*(AU2-1)) -> 186 | AV9: =Input!$C$4*(1-Input!$C$5*(AV2-1)) -> 183
D10: DSCR | E10: 所与 | G10: =Input!C6 -> 1.4 | I10: =$G10 -> 1.4 | J10: 1.4 | K10: 1.4 | L10: 1.4 | M10: 1.4 | N10: 1.4 | O10: 1.4 | P10: 1.4 | Q10: 1.4 | R10: 1.4 | S10: 1.4 | T10: 1.4 | U10: 1.4 | V10: 1.4 | W10: 1.4 | X10: 1.4 | Y10: 1.4 | Z10: 1.4 | AA10: 1.4 | AB10: 1.4 | AC10: 1.4 | AD10: 1.4 | AE10: 1.4 | AF10: 1.4 | AG10: 1.4 | AH10: 1.4 | AI10: 1.4 | AJ10: 1.4 | AK10: 1.4 | AL10: 1.4 | AM10: 1.4 | AN10: 1.4 | AO10: 1.4 | AP10: 1.4 | AQ10: 1.4 | AR10: 1.4 | AS10: 1.4 | AT10: 1.4 | AU10: 1.4 | AV10: 1.4
C11: ⓪ | D11: TargetDS | E11: 自動計算 | G11: =SUM(I11:AV11) -> -5130 | I11: =-I9/I10*I4 -> 0 | J11: -212.1428571 | K11: -210 | L11: -207.8571429 | M11: -205.7142857 | N11: -203.5714286 | O11: -201.4285714 | P11: -199.2857143 | Q11: -197.1428571 | R11: -195 | S11: -192.8571429 | T11: -190.7142857 | U11: -188.5714286 | V11: -186.4285714 | W11: -184.2857143 | X11: -182.1428571 | Y11: -180 | Z11: -177.8571429 | AA11: -175.7142857 | AB11: -173.5714286 | AC11: -171.4285714 | AD11: -169.2857143 | AE11: -167.1428571 | AF11: -165 | AG11: -162.8571429 | AH11: -160.7142857 | AI11: -158.5714286 | AJ11: -156.4285714 | AK11: -154.2857143 | AL11: 0 | AM11: 0 | AN11: 0 | AO11: 0 | AP11: 0 | AQ11: 0 | AR11: 0 | AS11: 0 | AT11: 0 | AU11: 0 | AV11: 0
D13: 期首元本 | E13: 自動計算 Σ① | I13: =H16 -> 0 | J13: 0 | K13: 4917.857143 | L13: 4707.857143 | M13: 4500 | N13: 4294.285714 | O13: 4090.714286 | P13: 3889.285714 | Q13: 3690 | R13: 3492.857143 | S13: 3297.857143 | T13: 3105 | U13: 2914.285714 | V13: 2725.714286 | W13: 2539.285714 | X13: 2355 | Y13: 2172.857143 | Z13: 1992.857143 | AA13: 1815 | AB13: 1639.285714 | AC13: 1465.714286 | AD13: 1294.285714 | AE13: 1125 | AF13: 957.8571429 | AG13: 792.8571429 | AH13: 630 | AI13: 469.2857143 | AJ13: 310.7142857 | AK13: 154.2857143 | AL13: 0 | AM13: 0 | AN13: 0 | AO13: 0 | AP13: 0 | AQ13: 0 | AR13: 0 | AS13: 0 | AT13: 0 | AU13: 0 | AV13: 0
D14: 借入 期首実行 | E14: 自動計算 | I14: =-$G15*I3 -> 0 | J14: 5130 | K14: 0 | L14: 0 | M14: 0 | N14: 0 | O14: 0 | P14: 0 | Q14: 0 | R14: 0 | S14: 0 | T14: 0 | U14: 0 | V14: 0 | W14: 0 | X14: 0 | Y14: 0 | Z14: 0 | AA14: 0 | AB14: 0 | AC14: 0 | AD14: 0 | AE14: 0 | AF14: 0 | AG14: 0 | AH14: 0 | AI14: 0 | AJ14: 0 | AK14: 0 | AL14: 0 | AM14: 0 | AN14: 0 | AO14: 0 | AP14: 0 | AQ14: 0 | AR14: 0 | AS14: 0 | AT14: 0 | AU14: 0 | AV14: 0
B15: pasted_repayment（I列~AV列） | C15: ① | D15: 元金返済(仮値) | E15: 数値入力 ⑤をペースト | G15: =SUMIFS(I15:AV15,I$4:AV$4,1) -> -5130 | I15: =I11 -> 0 | J15: =J11 -> -212.1428571 | K15: -210 | L15: -207.8571429 | M15: -205.7142857 | N15: -203.5714286 | O15: -201.4285714 | P15: -199.2857143 | Q15: -197.1428571 | R15: -195 | S15: -192.8571429 | T15: -190.7142857 | U15: -188.5714286 | V15: -186.4285714 | W15: -184.2857143 | X15: -182.1428571 | Y15: -180 | Z15: -177.8571429 | AA15: -175.7142857 | AB15: -173.5714286 | AC15: -171.4285714 | AD15: -169.2857143 | AE15: -167.1428571 | AF15: -165 | AG15: -162.8571429 | AH15: -160.7142857 | AI15: -158.5714286 | AJ15: -156.4285714 | AK15: -154.2857143 | AL15: 0 | AM15: 0 | AN15: 0 | AO15: 0 | AP15: 0 | AQ15: 0 | AR15: 0 | AS15: 0 | AT15: 0 | AU15: 0 | AV15: 0
C16: ② | D16: 期末元本 | E16: 自動計算 Σ① | I16: =IF(ABS(SUM(I13:I15))>tol,SUM(I13:I15),0) -> 0 | J16: 4917.857143 | K16: 4707.857143 | L16: 4500 | M16: 4294.285714 | N16: 4090.714286 | O16: 3889.285714 | P16: 3690 | Q16: 3492.857143 | R16: 3297.857143 | S16: 3105 | T16: 2914.285714 | U16: 2725.714286 | V16: 2539.285714 | W16: 2355 | X16: 2172.857143 | Y16: 1992.857143 | Z16: 1815 | AA16: 1639.285714 | AB16: 1465.714286 | AC16: 1294.285714 | AD16: 1125 | AE16: 957.8571429 | AF16: 792.8571429 | AG16: 630 | AH16: 469.2857143 | AI16: 310.7142857 | AJ16: 154.2857143 | AK16: 0 | AL16: 0 | AM16: 0 | AN16: 0 | AO16: 0 | AP16: 0 | AQ16: 0 | AR16: 0 | AS16: 0 | AT16: 0 | AU16: 0 | AV16: 0
D18: 加重平均金利 | E18: 所与 | I18: 0.025 | J18: 0.0255 | K18: 0.026 | L18: 0.0265 | M18: 0.027 | N18: 0.0275 | O18: 0.028 | P18: 0.0285 | Q18: 0.029 | R18: 0.0295 | S18: 0.03 | T18: 0.0305 | U18: 0.031 | V18: 0.0315 | W18: 0.032 | X18: 0.0325 | Y18: 0.033 | Z18: 0.0335 | AA18: 0.01 | AB18: 0.01 | AC18: 0.01 | AD18: 0.01 | AE18: 0.01 | AF18: 0.01 | AG18: 0.01 | AH18: 0.01 | AI18: 0.01 | AJ18: 0.01 | AK18: 0.01 | AL18: 0.01 | AM18: 0.01 | AN18: 0.01 | AO18: 0.01 | AP18: 0.01 | AQ18: 0.01 | AR18: 0.01 | AS18: 0.01 | AT18: 0.01 | AU18: 0.01 | AV18: 0.01
C19: ③ | D19: 利息(期主・期末平均基準) | E19: 自動計算 ②*金利 | G19: =SUMIFS(I19:AV19,I$4:AV$4,1) -> -1707.947679 | I19: =-(I13+I16)/2*I18 -> 0 | J19: -62.70267857 | K19: -125.1342857 | L19: -122.0041071 | M19: -118.7228571 | N19: -115.29375 | O19: -111.72 | P19: -108.0048214 | Q19: -104.1514286 | R19: -100.1630357 | S19: -96.04285714 | T19: -91.79410714 | U19: -87.42 | V19: -82.92375 | W19: -78.30857143 | X19: -73.57767857 | Y19: -68.73428571 | Z19: -63.78160714 | AA19: -17.27142857 | AB19: -15.525 | AC19: -13.8 | AD19: -12.09642857 | AE19: -10.41428571 | AF19: -8.753571429 | AG19: -7.114285714 | AH19: -5.496428571 | AI19: -3.9 | AJ19: -2.325 | AK19: -0.7714285714 | AL19: 0 | AM19: 0 | AN19: 0 | AO19: 0 | AP19: 0 | AQ19: 0 | AR19: 0 | AS19: 0 | AT19: 0 | AU19: 0 | AV19: 0
C20: ④ | D20: DS(仮値) | E20: 自動計算 ①＋③ | G20: =SUMIFS(I20:AV20,I$4:AV$4,1) -> -6837.947679 | I20: =I19+I15 -> 0 | J20: -274.8455357 | K20: -335.1342857 | L20: -329.86125 | M20: -324.4371429 | N20: -318.8651786 | O20: -313.1485714 | P20: -307.2905357 | Q20: -301.2942857 | R20: -295.1630357 | S20: -288.9 | T20: -282.5083929 | U20: -275.9914286 | V20: -269.3523214 | W20: -262.5942857 | X20: -255.7205357 | Y20: -248.7342857 | Z20: -241.63875 | AA20: -192.9857143 | AB20: -189.0964286 | AC20: -185.2285714 | AD20: -181.3821429 | AE20: -177.5571429 | AF20: -173.7535714 | AG20: -169.9714286 | AH20: -166.2107143 | AI20: -162.4714286 | AJ20: -158.7535714 | AK20: -155.0571429 | AL20: 0 | AM20: 0 | AN20: 0 | AO20: 0 | AP20: 0 | AQ20: 0 | AR20: 0 | AS20: 0 | AT20: 0 | AU20: 0 | AV20: 0
C22: ⑤ | D22: dif | E22: 自動計算 ⓪-④ | G22: =SUM(I22:AV22) -> 1707.947679 | I22: =I11-I20 -> 0 | J22: =J11-J20 -> 62.70267857 | K22: 125.1342857 | L22: 122.0041071 | M22: 118.7228571 | N22: 115.29375 | O22: 111.72 | P22: 108.0048214 | Q22: 104.1514286 | R22: 100.1630357 | S22: 96.04285714 | T22: 91.79410714 | U22: 87.42 | V22: 82.92375 | W22: 78.30857143 | X22: 73.57767857 | Y22: 68.73428571 | Z22: 63.78160714 | AA22: 17.27142857 | AB22: 15.525 | AC22: 13.8 | AD22: 12.09642857 | AE22: 10.41428571 | AF22: 8.753571429 | AG22: 7.114285714 | AH22: 5.496428571 | AI22: 3.9 | AJ22: 2.325 | AK22: 0.7714285714 | AL22: 0 | AM22: 0 | AN22: 0 | AO22: 0 | AP22: 0 | AQ22: 0 | AR22: 0 | AS22: 0 | AT22: 0 | AU22: 0 | AV22: 0
D23: tol(所与) | E23: =tol -> 1e-06
B24: judge(G列) | C24: ⑤ | D24: judge | E24: 自動計算 abs(⑤)<tol | G24: =AND(I24:AV24) -> FALSE | I24: =(0<=I22)*(I22<=tol)=1 -> TRUE | J24: =(0<=J22)*(J22<=tol)=1 -> FALSE | K24: =(0<=K22)*(K22<=tol)=1 -> FALSE | L24: =(0<=L22)*(L22<=tol)=1 -> FALSE | M24: =(0<=M22)*(M22<=tol)=1 -> FALSE | N24: =(0<=N22)*(N22<=tol)=1 -> FALSE | O24: =(0<=O22)*(O22<=tol)=1 -> FALSE | P24: =(0<=P22)*(P22<=tol)=1 -> FALSE | Q24: =(0<=Q22)*(Q22<=tol)=1 -> FALSE | R24: =(0<=R22)*(R22<=tol)=1 -> FALSE | S24: =(0<=S22)*(S22<=tol)=1 -> FALSE | T24: =(0<=T22)*(T22<=tol)=1 -> FALSE | U24: =(0<=U22)*(U22<=tol)=1 -> FALSE | V24: =(0<=V22)*(V22<=tol)=1 -> FALSE | W24: =(0<=W22)*(W22<=tol)=1 -> FALSE | X24: =(0<=X22)*(X22<=tol)=1 -> FALSE | Y24: =(0<=Y22)*(Y22<=tol)=1 -> FALSE | Z24: =(0<=Z22)*(Z22<=tol)=1 -> FALSE | AA24: =(0<=AA22)*(AA22<=tol)=1 -> FALSE | AB24: =(0<=AB22)*(AB22<=tol)=1 -> FALSE | AC24: =(0<=AC22)*(AC22<=tol)=1 -> FALSE | AD24: =(0<=AD22)*(AD22<=tol)=1 -> FALSE | AE24: =(0<=AE22)*(AE22<=tol)=1 -> FALSE | AF24: =(0<=AF22)*(AF22<=tol)=1 -> FALSE | AG24: =(0<=AG22)*(AG22<=tol)=1 -> FALSE | AH24: =(0<=AH22)*(AH22<=tol)=1 -> FALSE | AI24: =(0<=AI22)*(AI22<=tol)=1 -> FALSE | AJ24: =(0<=AJ22)*(AJ22<=tol)=1 -> FALSE | AK24: =(0<=AK22)*(AK22<=tol)=1 -> FALSE | AL24: =(0<=AL22)*(AL22<=tol)=1 -> TRUE | AM24: =(0<=AM22)*(AM22<=tol)=1 -> TRUE | AN24: =(0<=AN22)*(AN22<=tol)=1 -> TRUE | AO24: =(0<=AO22)*(AO22<=tol)=1 -> TRUE | AP24: =(0<=AP22)*(AP22<=tol)=1 -> TRUE | AQ24: =(0<=AQ22)*(AQ22<=tol)=1 -> TRUE | AR24: =(0<=AR22)*(AR22<=tol)=1 -> TRUE | AS24: =(0<=AS22)*(AS22<=tol)=1 -> TRUE | AT24: =(0<=AT22)*(AT22<=tol)=1 -> TRUE | AU24: =(0<=AU22)*(AU22<=tol)=1 -> TRUE | AV24: =(0<=AV22)*(AV22<=tol)=1 -> TRUE
B26: caluculated_repayment（I列~AV列） | C26: ⑥ | D26: 元金返済(修正値) | E26: 自動計算 ⓪+③ | G26: =SUMIFS(I26:AV26,I$4:AV$4,1) -> -3422.052321 | I26: =(I11-I19) -> 0 | J26: =(J11-J19) -> -149.4401786 | K26: =(K11-K19) -> -84.86571429 | L26: -85.85303571 | M26: -86.99142857 | N26: -88.27767857 | O26: -89.70857143 | P26: -91.28089286 | Q26: -92.99142857 | R26: -94.83696429 | S26: -96.81428571 | T26: -98.92017857 | U26: -101.1514286 | V26: -103.5048214 | W26: -105.9771429 | X26: -108.5651786 | Y26: -111.2657143 | Z26: -114.0755357 | AA26: -158.4428571 | AB26: -158.0464286 | AC26: -157.6285714 | AD26: -157.1892857 | AE26: -156.7285714 | AF26: -156.2464286 | AG26: -155.7428571 | AH26: -155.2178571 | AI26: -154.6714286 | AJ26: -154.1035714 | AK26: -153.5142857 | AL26: 0 | AM26: 0 | AN26: 0 | AO26: =(AO11-AO19) -> 0 | AP26: 0 | AQ26: 0 | AR26: 0 | AS26: 0 | AT26: 0 | AU26: 0 | AV26: 0
